Cogmind - Beta 17 @@@ ROGUE MODE // 2026.08.21 @ 06:00:40 Player: Six of Ten Result: Destroyed by C-17 Slicer with Concussive RPG Performance ------------- Evolutions (2) 1000 Regions Visited (3) 600 Robots Destroyed (16) 80 Value Destroyed (492) 492 Prototype IDs (1) 20 Alien Tech Used (0) 0 Bonus (6600) 6600 TOTAL SCORE: 8792 Bonus ------- Prayed to X0-1V1 5000 Major X0-1V1 Interference 1600 Cogmind --------- Core Integrity 0/350 Matter 139/700 Energy 81/100 System Corruption 1% Temperature Cool (0) Movement Core (50) Location -8/Materials Parts ------- > --- POWER (2) -------- (None) > --- PROPULSION (4) --- (None) > --- UTILITY (3) ------ Advanced Targeting Computer Improved Power Shielding > --- WEAPON (2) ------- (None) > --- INVENTORY (7) ---- Ion Engine Subdweller Power Source Peak State ------------ > --- POWER ------------ Light Nuclear Core > --- PROPULSION ------- Wheel > --- UTILITY ---------- Improved Sensor Array Advanced Targeting Computer X0-1V1's Piety Tracker > --- WEAPON ----------- Autogun Improved Grenade Launcher > --- INVENTORY -------- Ion Engine Subdweller Power Source Improved Power Shielding Light Assault Rifle [Rating: 28] Favorites ----------- Power Light Ion Engine Engine Light Ion Engine Power Core Light Nuclear Core Propulsion Light Treads Treads Light Treads Wheel Wheel Flight Unit Flight Unit Utility X0-1V1's Piety Tracker Device X0-1V1's Piety Tracker Storage Large Storage Unit Processor Advanced Targeting Computer Protection Improved Power Shielding Weapon Light Assault Rifle Energy Gun Medium Laser Ballistic Gun Light Assault Rifle Launcher Improved Grenade Launcher Build | -11 -10 -10 -8 ------- Run | Yrd Mat Sub Mat Slots Evolved 4 | . . . 4 Power 1 | . . . 1 Propulsion 2 | . . . 2 Utility 1 | . . . 1 Weapon . | . . . . Parts Attached 29 | 5 7 . 17 Power 6 | 1 1 . 4 Engine 3 | 1 . . 2 Core 3 | . 1 . 2 Reactor . | . . . . Propulsion 9 | 2 2 . 5 Treads 2 | 2 . . . Leg . | . . . . Wheel 1 | . . . 1 Hover . | . . . . Flight 6 | . 2 . 4 Utility 7 | . 2 . 5 Device 4 | . 1 . 3 Storage 1 | . 1 . . Processor 1 | . . . 1 Hackware . | . . . . Protection 1 | . . . 1 Artifact . | . . . . Weapon 7 | 2 2 . 3 Energy Gun 1 | . 1 . . Energy Cannon . | . . . . Ballistic Gun 5 | 2 1 . 2 Ballistic Cannon . | . . . . Launcher 1 | . . . 1 Special Weapon . | . . . . Impact Weapon . | . . . . Slashing Weapon . | . . . . Piercing Weapon . | . . . . Special Melee Weapon . | . . . . Unidentified Prototypes 1 | . 1 . . Parts Lost 21 | . 4 . 17 Power 4 | . 1 . 3 Propulsion 8 | . 2 . 6 Utility 3 | . . . 3 Weapon 6 | . 1 . 5 Highest Loss Streak 7 | . 3 . 7 To Critical Strikes . | . . . . Average Backups 3 | 1 3 2 3 Power 1 | . 1 1 2 Propulsion . | . . . . Utility . | . . . . Weapon 1 | . 1 1 1 Tool/Special . | . . . . Unused Backups 1 | . . . 1 Power 1 | . . . 1 Propulsion . | . . . . Utility . | . . . . Weapon . | . . . . Tool/Special . | . . . . Average Slot Usage (%) 61 | . 71 85 47 Engine 5 | . 9 . . Core 4 | . 3 14 4 Treads 11 | . 21 . . Wheel 1 | . . . 2 Flight 4 | . 2 28 5 Device 8 | . . 14 17 Storage 3 | . 7 . . Processor 2 | . . . 4 Energy Gun 3 | . 1 14 4 Ballistic Gun 16 | . 25 14 6 Peak Build Rating 28 | 5 20 20 28 Average Rating 11 | 3 5 20 20 On Entrance 11 | . 5 20 20 Avg Prop Armor Cover (%) . | . . . . Naked Turns . | . . . . Heaviest Build 27 | 6 27 9 15 Greatest Support 40 | 40 40 8 10 Greatest Overweight (x) 3 | . 1 1 3 Average Overweight (x) . | . . 1 . Largest Inventory Capacity 15 | 5 15 5 7 Average Capacity 7 | 5 10 5 5 Most Carried 7 | 2 5 3 7 Average Carried 3 | 1 3 2 3 Final Capacity 7 | 5 5 5 7 Final Carried 3 | 2 2 3 2 Class Distribution -------------------- 93% | Mutant 6% | Scavenger-Mutant Dominant Class ---------------- Mutant | -10/Materials Scavenger-Mutant | -10/Subcaves Mutant | -8/Materials Resources | -11 -10 -10 -8 ----------- Run | Yrd Mat Sub Mat Matter Collected 560 | 212 155 . 193 Remotely . | . . . . Salvage Created 461 | . 262 . 199 Parts 23 | . 11 . 12 Haulers Intercepted . | . . . . Recyclers Shooed . | . . . . Parts Field Recycled . | . . . . Retrieved Matter . | . . . . Parts Self-Destructed . | . . . . Prevented . | . . . . Parts Restored . | . . . . Kills | -11 -10 -10 -8 ------- Run | Yrd Mat Sub Mat Combat Hostiles Destroyed 15 | . 7 . 8 Guns 12 | . 7 . 5 AOE 3 | . . . 3 Classes Destroyed 5 | . 3 . 2 Watcher 1 | . 1 . . Swarmer 6 | . 3 . 3 Grunt 7 | . 4 . 3 Sentry 1 | . . . 1 Hunter 1 | . . . 1 Best Kill Streak 4 | . 4 . 3 Combat Bots Only 4 | . 4 . 3 Max Kills in Single Turn 1 | . 1 . 1 Gunslinging . | . . . . Exploded 1 | . . . 1 Melee . | . . . . Uniques/NPCs Destroyed . | . . . . Combat | -11 -10 -10 -8 -------- Run | Yrd Mat Sub Mat Hostile Shots Fired 241 | . 82 . 159 Missed 79 | . 22 . 57 Hits 162 | . 60 . 102 Melee 4 | . . . 4 Projectile 158 | . 60 . 98 AOE 2 | . . . 2 Critical Strikes 6 | . 2 . 4 Damage Taken 2163 | . 782 . 1381 Core 736 | . 171 . 565 Absorbed by Shields . | . . . . Core Remaining (%) 65 | 100 . 31 . Volleys Fired 62 | . 33 . 29 Largest 2 | . 2 . 2 Hottest 70 | . 40 . 70 Shots Fired 112 | . 63 . 49 Gun 106 | . 63 . 43 Cannon . | . . . . Launcher 6 | . . . 6 Special . | . . . . Kinetic 93 | . 63 . 30 Thermal 13 | . . . 13 Explosive 6 | . . . 6 Electromagnetic . | . . . . Robot Hit Streak 9 | . 7 . 9 Robot Miss Streak 4 | . 4 . 2 Penetration Max . | . . . . Secondary Targets 2 | . 1 . 1 Max Gunslinging Chain 1 | . 1 . 1 Shots Hit Robots 80 | . 41 . 39 Core Hits 35 | . 17 . 18 Critical Kills . | . . . . Critical Parts Destroyed . | . . . . Critical Strikes . | . . . . Melee Attacks . | . . . . Impact . | . . . . Slashing . | . . . . Piercing . | . . . . Sneak Attacks . | . . . . Combat Hostiles . | . . . . Follow-up Attacks . | . . . . Damage Inflicted 1318 | . 426 . 892 Guns 804 | . 426 . 378 Cannons . | . . . . Explosions 514 | . . . 514 Melee . | . . . . Ramming . | . . . . Kinetic 688 | . 426 . 262 Thermal 116 | . . . 116 Explosive 514 | . . . 514 Electromagnetic . | . . . . Impact . | . . . . Slashing . | . . . . Piercing . | . . . . Highest Corruption 2 | . 2 2 1 Average Corruption 1 | . 2 2 1 Corruption Purged . | . . . . Corruption Blocked . | . . . . Effects 1 | . 1 . . Data Loss (minor) 1 | . 1 . . Overload Shots . | . . . . Overflow Damage 11 | . . . 11 Projectiles . | . . . . Explosions 11 | . . . 11 Melee . | . . . . Knockbacks . | . . . . Impact . | . . . . Kinetic . | . . . . Secondary . | . . . . Self-Inflicted Damage 23 | . . . 23 Shots 1 | . . . 1 Rammed . | . . . . Targets Rammed . | . . . . Kicked . | . . . . Crushed . | . . . . Highest Temperature 71 | . 51 . 71 Average Temperature 27 | . 23 . 29 Received Heat Transfer 818 | . 444 . 374 Siege Activations . | . . . . Martial Activations . | . . . . Shielding Activations . | . . . . Robots Disrupted . | . . . . Combat Hostiles . | . . . . Robots Corrupted . | . . . . Combat Hostiles . | . . . . Parts Fried . | . . . . Impact Corruptions . | . . . . Robots Melted . | . . . . Combat Hostiles . | . . . . Parts Melted 1 | . . . 1 Heat Transferred 333 | . . . 333 Parts Sabotaged . | . . . . Parts Stolen . | . . . . Parts Stripped . | . . . . Power Chain Reactions . | . . . . Alert | -11 -10 -10 -8 ------- Run | Yrd Mat Sub Mat Maximum Alert Level . | . . . . Low Security (%) 100 | 100 100 . 100 Level 1 . | . . . . Level 2 . | . . . . Level 3 . | . . . . Level 4 . | . . . . Level 5 . | . . . . High Security . | . . . . Max Security . | . . . . Peak Influence 160 | . 60 . 160 Initial 5 | . . . 5 Average 32 | . 19 . 51 Influence Increases 615 | . 225 . 390 Destroy 0b10 Robot/C 300 | . 140 . 160 Destroy 0b10 Robot/NC 5 | . 5 . . Destroy Leader 62 | . 32 . 30 Successful Hack 18 | . 18 . . Disable Machine 15 | . . . 15 Destroy Structure 35 | . . . 35 Lose Combat Pursuer 180 | . 30 . 150 Influence Decreases 495 | . 203 11 281 Entered New Map 17 | . . 11 6 Time Decay 308 | . 163 . 145 Lost Part 170 | . 40 . 130 Squads Dispatched 5 | . 1 . 4 Investigation 2 | . 1 . 1 Extermination . | . . . . Reinforcement 3 | . . . 3 Assault . | . . . . Garrison . | . . . . Intercept . | . . . . Searches Triggered . | . . . . Construction Impeded . | . . . . Haulers Reinforced . | . . . . Active Scanning Responses . | . . . . Cargo Convoy Interrupts . | . . . . Stealth | -11 -10 -10 -8 --------- Run | Yrd Mat Sub Mat Distress Signals 2 | . . . 2 Communications Jammed . | . . . . Distress Signals . | . . . . Times Spotted 36 | . 14 . 22 Peak Tracking Total 7 | . 4 . 7 Tactical Retreats 6 | . 1 . 5 ECM-based Alert Blocks 1 | . . . 1 Traps | -11 -10 -10 -8 ------- Run | Yrd Mat Sub Mat Traps Triggered 1 | . 1 . . Indirectly . | . . . . Trap Hack Attempts . | . . . . Triggered . | . . . . Disarmed . | . . . . Reprogrammed . | . . . . Reused . | . . . . Traps Extracted . | . . . . Installed . | . . . . Triggered . | . . . . Machines | -11 -10 -10 -8 ---------- Run | Yrd Mat Sub Mat Machines Disabled 1 | . . . 1 Max in Single Turn 1 | . . . 1 Machines Repaired . | . . . . Machines Dismantled . | . . . . Machines Sabotaged . | . . . . Overloaded Fab Kills . | . . . . Hacking | -11 -10 -10 -8 --------- Run | Yrd Mat Sub Mat Machines Accessed 2 | . 2 . . Terminals 2 | . 2 . . Fabricators . | . . . . Repair Stations . | . . . . Recycling Units . | . . . . Scanalyzers . | . . . . Garrison Access . | . . . . Total Hacks 6 | . 6 . . Successful 3 | . 3 . . Failed 3 | . 3 . . Catastrophic 1 | . 1 . . Database Lockouts . | . . . . Manual 7 | . 7 . . Terminals 6 | . 6 . . Fabricators . | . . . . Repair Stations . | . . . . Recycling Units . | . . . . Scanalyzers . | . . . . Garrison Access . | . . . . Terminal Hacks 1 | . 1 . . Robot Analysis 1 | . 1 . . Fabricator Hacks . | . . . . Repair Station Hacks . | . . . . Recycling Unit Hacks . | . . . . Scanalyzer . | . . . . Garrison Access Hacks . | . . . . Unauthorized Hacks 2 | . 2 . . Terminals 2 | . 2 . . Botnet 2 | . 2 . . Fabricators . | . . . . Repair Stations . | . . . . Recycling Units . | . . . . Scanalyzers . | . . . . Garrison Access . | . . . . Data Cores Recovered . | . . . . Used . | . . . . Hacking Detections 2 | . 2 . . Full Trace Events . | . . . . Feedback Events . | . . . . Feedback Blocked . | . . . . Robot Schematics Acquired . | . . . . Robots Built . | . . . . Authchips . | . . . . Time . | . . . . Total Robot Build Rating . | . . . . Part Schematics Acquired . | . . . . Parts Built . | . . . . Authchips . | . . . . Time . | . . . . Total Part Build Rating . | . . . . Part Studies Acquired . | . . . . Parts Repaired . | . . . . Time . | . . . . Parts Recycled . | . . . . Recycled Matter . | . . . . Retrieved Matter . | . . . . Retrieved Components . | . . . . Parts Scanalyzed . | . . . . Part Schematics Acquired . | . . . . Parts Damaged . | . . . . Bothacking | -11 -10 -10 -8 ------------ Run | Yrd Mat Sub Mat Used RIF Installer . | . . . . Robots Hacked . | . . . . Non-combat . | . . . . Combat . | . . . . Robot Hacks Applied . | . . . . Relay Couplers Released . | . . . . Fabnet Peak Effective % . | . . . . Robots Rewired . | . . . . Allies Hacked . | . . . . Hacks Repelled . | . . . . Allies | -11 -10 -10 -8 -------- Run | Yrd Mat Sub Mat Total Allies . | . . . . Largest Group . | . . . . Highest-Rated Group . | . . . . Highest-Rated Ally . | . . . . Total Orders . | . . . . Ally Attacks . | . . . . Total Damage . | . . . . Kills . | . . . . Allies Corrupted . | . . . . Allies Melted . | . . . . X0-1V1 Amusement Gains 86 | . 6 . 80 Good Acts 2 | . . . 2 Bad Acts 12 | . 1 . 11 Intel | -11 -10 -10 -8 ------- Run | Yrd Mat Sub Mat Active Infowar (turns) 282 | . . . 282 Sensors 236 | . . . 236 ECM 88 | . . . 88 Robot Analysis Total 1 | . 1 . . Derelict Logs Recovered . | . . . . Drone Launches . | . . . . Drone Recoveries . | . . . . Exploration | -11 -10 -10 -8 ------------- Run | Yrd Mat Sub Mat Turns Passed 932 | 62 464 14 392 Spaces Moved 685 | 35 308 12 330 Core 183 | 2 34 . 147 Treads 199 | 33 166 . . Legs . | . . . . Wheels 80 | . . . 80 Hover . | . . . . Flight 223 | . 108 12 103 Fastest Speed 37 | 50 37 117 37 Average Speed 100 | 153 115 117 80 Slowest Speed 240 | 160 240 117 200 Overloaded Moves . | . . . . Propulsion Burnouts . | . . . . Robots Hopped 7 | . 4 . 3 Potential Cave-ins . | . . . . Cave-ins Triggered . | . . . . Exploration Rate (%) 18 | 3 42 3 27 Regions Visited 3 Branch Regions 1 Pre-discovered Areas . | . . . . Known Exits Taken . | . . . . Unknown Exits Taken 3 | 1 1 1 . Scrap Searched . | . . . . Spaces Dug . | . . . . Terrain Destroyed 36 | . . . 36 Melee . | . . . . Projectile . | . . . . AOE 36 | . . . 36 Terrain Rammed . | . . . . Walls Destroyed . | . . . . Machines Disabled . | . . . . Actions | -11 -10 -10 -8 --------- Run | Yrd Mat Sub Mat Total 814 | 41 356 12 405 Wait 20 | . 8 . 12 Move 668 | 34 299 11 324 Hop 7 | . 4 . 3 Pick Up 9 | 2 3 1 3 Fast Attach 23 | 5 3 . 15 Attach 13 | . 4 . 9 Detach 7 | . 1 . 6 Swap . | . . . . Drop 5 | . 1 . 4 Fire 62 | . 33 . 29 Melee . | . . . . Ram . | . . . . Kick . | . . . . Crush . | . . . . Escape Stasis . | . . . . Rewire . | . . . . Trap . | . . . . Miscellaneous . | . . . . Route ------- -11/Scrapyard -10/Materials -10/Subcaves -8/Materials History --------- Turn | Location | Event 13 | -11/Scrapyard | Discovered new exit (range 14) 63 | -11/Scrapyard | Entered Materials 134 | -10/Materials | Discovered new exit (range 8) 309 | -10/Materials | Build established: Mutant 396 | -10/Materials | Core integrity fell below 50% 422 | -10/Materials | Lost 3 parts (1p1n1w) 518 | -10/Materials | Prayed at D.C.S.S. Altar Unit 527 | -10/Materials | Entered Subcaves 528 | -10/Subcaves | Approached by a straggling Scientist 530 | -10/Subcaves | Discovered new exit (range 10) 536 | -10/Subcaves | Shifting Twisted Machinery released Sub. Power Source 540 | -10/Subcaves | Shifting Twisted Machinery released Sub. Monowheel 541 | -10/Subcaves | Entered Materials 541 | -8/Materials | Evolved 4 slots: Power x1, Propulsion x2, Utility x1 667 | -8/Materials | Lost 4 parts (1p2n1w) 768 | -8/Materials | Core integrity fell below 50% 790 | -8/Materials | Core integrity fell below 20% 793 | -8/Materials | Inventory capacity permanently improved by X0-1V1 (+2; -200 max core) 810 | -8/Materials | Lost 6 parts (1p4n1w) 811 | -8/Materials | Sensors blinded by X0-1V1 831 | -8/Materials | X0-1V1 announced a LAN party 933 | -8/Materials | Destroyed by C-17 Slicer with Concussive RPG Last Messages --------------- 00915_ Acquired X0-1V1's Piety Tracker. 00915_ U-05 Engineer builds a Wall. 00919_ The unstable cave ceiling collapses. 00919_ K-01 Serf collects debris. 00919_ U-05 Engineer lays Concrete. 00920_ Acquired 11 matter. 00920_ U-05 Engineer builds a Wall. 00922_ U-05 Engineer lays Concrete. 00923_ K-01 Serf collects debris. 00925_ U-05 Engineer lays Concrete. 00926_ Lgt. Nuclear Core destroyed. 00927_ X0-1V1: "So many nails, never enough hammers..." (-17% ranged accuracy) 00930_ Autogun destroyed. 00930_ Dropped Wheel. 00932_ X0-1V1's Piety Tracker destroyed. 00932_ System corrupted by crushing effect (+1). 00932_ Knocked back. 00932_ O-16 Technician system corrupted by crushing effect. 00933_ X0-1V1 giggles madly! Map ----- +----------------------------------------------------+ | ????????????????????????????????? ?????????????? | | ????????????????????????????????# #????????????? | | ????????????????????????????????# #? ???????? | | ????????????????????????????????# ## ??????? | | ????????????????????????????????# ## ####### | | ????????????????????????????????# ## # | | ????????????????????????????????# ## # | | ????????????????????????????????# ## # | | ???????????????????????????????## ## # | | ????????????????????############ # # | | ????????????????????? # # """ " | | ????????????????????????# T + # """ " | | ?????????????????????????? # """ " | | ???????????????????????###+##### #?## +# | | ???????????????????????# ### ####### | | ???????????????????????# """ # ! # | | ??????????????????????## """ # "Y" + | | ??????????????????????# c""" """ # | | ??????????????????????## o Y # # | | ???????????????????????# c""" ## ######## | | ???????????????????????# """ ### ##?????## | | ???????????????????????#! """c#?# | | ??????????????????????## #?# | | ??????????????????????# #?# | | ???????????????????????# ################### | | ???????????????????????# @ #????????????????# | | ???????????????????????# " " ##????????????????# | | ???????????????????????########?????????????????#% | | ?????????????????????########???????????????????# | | ?????????????????????# ################????# | | ?????????????????????# # ?? | | ?????????????????????# %# | | ?????????????????????# / | | ?????????????????????# S"" # ? | | ?????????????????????# "" # ? | | ?????????????????????######## H ?? | | ????????????????????????????# ????? | | ????????????????????????????# ###?????? | | ????????????????????????????# #???????? | | ????????????????????????????# #???????? | | ?????????????????????????#### ###?????? | | ?????????????????????????# #?????? | | ?????????????????????????# +?????? | | ?????????????????????????# """ "" """ #?????? | | ?????????????????????????# """ " """ #?????? | | ?????????????????????????# """ " """ #?????? | | ?????????????????????????# #?????? | | ??????????########+####### #?????? | | ????????? #?????? | | ????????? ######? | +----------------------------------------------------+ Best States ------------- Heat Dissipation 31 Energy Generation 14 Energy Capacity 250 Matter Stores 349 Matter Capacity 700 Sight Range 16 Robot Scan Range 15 Terrain Scan Density 10 ECM Strength 1 Evasion (%) 62 Targeting Accuracy 8 Recoil Reduction 2 Item Schematics ----------------- None Robot Schematics ------------------ None Fabricated ------------ Nothing Repaired ---------- Nothing Studied --------- None Alien Tech Used ----------------- None Achievements -------------- Chaos Is Inevitable Challenges ------------ None Game ------ Seed BraceModifiedPit Manual? 0 Play Time 00:18:11 Cumulative 40.9 hours Start 2026.08.21 @ 05:44:25 End 2026.08.21 @ 06:00:40 Sessions 1 Manual Loads 0 Difficulty Rogue Special Mode None Game No. 55 Rogue 55 Adventurer 0 Explorer 0 Win Type - Total 0 Types 0/0/0/0/0/0/0/0/0/0 Lore% 17 Gallery% 30 Achievement% 21 Wizard Run 0 Options --------- Layout 0 ASCII 1 Keyboard 0 Movement Numpad Keybinds 0 Fullscreen 2 Font 18/SmallcapsGlow Map View 76x50 Zoom Use 0% Tactical HUD 1 Map Filters NONE Filters NONE Steam 1 RUN: d878772e-4d16-4d36-98bc-de12c5b75097